bitfinex/quotes_ETHUSD_20240707
["timestamp","ask_amount","ask_price","bid_price","bid_amount"]
[1720336236900,1.24956944,3031.5,3031.3,4.75391]
[1720336237113,1.14223548,3031.4,3031.3,4.75391]
[1720336237941,1.14223548,3031.4,3031.3,5.72491]
[1720336238238,3.57,3031.6,3031.3,5.72491]
[1720336238431,1.1421756,3031.5,3031.3,3.4157]
[1720336238630,3.57,3031.6,3031.3,3.4157]
[1720336238631,1.1421756,3031.4,3031.3,3.4157]
[1720336238787,3.57,3031.6,3031.3,3.4157]
[1720336238788,1.1421756,3031.5,3031.3,3.4157]
[1720336238991,3.57,3031.6,3031.3,5.72491]
[1720336239189,1.14223774,3031.4,3031.3,5.72491]
[1720336239626,1.14223697,3031.4,3031.3,4.75391]
[1720336240004,1.14223697,3031.4,3031.3,3.248116]
[1720336240234,2.44,3031.5,3031.3,5.72494]
[1720336240626,2.44,3031.5,3031.4,2.30916]
[1720336240827,2.44,3031.5,3031.4,7.06302]
[1720336243125,1.72002954,3032.3,3031.4,7.06302]
[1720336243126,1.72002954,3032.3,3031.6,2.30894]
[1720336243341,1.14204674,3032.0,3031.6,3.27994]
[1720336243496,1.14204674,3031.9,3031.6,3.27994]
[1720336243701,1.72002954,3032.3,3031.8,2.30885]
[1720336244013,1.14203096,3032.0,3031.8,2.3088]
[1720336244214,1.14203096,3031.9,3031.8,2.3088]
[1720336245142,1.72002954,3032.4,3031.8,2.3088]
[1720336245304,1.1420365,3032.0,3031.7,0.971]
[1720336245506,1.14205205,3031.9,3031.7,3.27992]
[1720336245729,1.71880071,3032.3,3031.7,3.27992]
[1720336245940,1.14204505,3032.0,3031.8,2.30881]
[1720336246137,1.14204505,3031.9,3031.8,2.30881]
[1720336246647,1.14204505,3031.9,3031.6,2.30894]
[1720336246808,1.14204505,3031.8,3031.6,3.27994]
[1720336247141,1.71880071,3032.2,3031.6,3.27994]
[1720336247330,1.14208188,3032.0,3031.6,3.27994]
[1720336247513,1.14208188,3031.9,3031.7,2.30893]
[1720336247741,1.14208188,3031.8,3031.7,2.30893]
[1720336247914,1.71880071,3032.3,3031.7,2.30893]
[1720336248119,1.14203368,3032.0,3031.8,2.4447]
[1720336248330,1.14203368,3031.9,3031.8,2.4447]
[1720336248531,1.14203368,3031.9,3031.8,3.4157]
[1720336248704,4.61,3032.1,3031.8,3.4157]
[1720336248911,1.14202406,3032.0,3031.8,3.4157]
[1720336249445,1.1420207,3031.9,3031.8,3.4157]
[1720336250521,1.14203279,3031.9,3031.8,3.4157]
[1720336251836,1.14203279,3031.9,3031.8,0.971]
[1720336252034,1.14201649,3031.9,3031.8,3.4157]
[1720336253246,1.14201649,3031.9,3031.8,5.72455]
[1720336253432,1.14201649,3031.9,3031.8,8.836748]
[1720336253640,4.61,3032.1,3031.8,6.527898]
[1720336253826,4.61,3032.1,3032.0,3.2797]
[1720336254027,5.75194481,3032.1,3032.0,3.2797]
[1720336255152,3.31194481,3032.1,3032.0,3.2797]
[1720336255521,3.31194489,3032.1,3032.0,3.2797]
[1720336257024,3.31194489,3032.1,3032.0,5.6146]
[1720336257226,2.17,3032.1,3032.0,6.4872728]
[1720336257461,2.17,3032.1,3032.0,5.6146]
[1720336257827,2.17,3032.1,3032.0,7.9233]
[1720336260870,2.17,3032.1,3032.0,4.6436]
[1720336261071,2.17,3032.1,3031.3,3.32506341]
[1720336261072,2.17,3032.1,3031.6,2.30895]
[1720336261270,2.17,3032.1,3031.6,2.309]
[1720336261582,2.17,3032.1,3031.7,2.30892]
[1720336261583,1.14199925,3032.0,3031.7,2.30892]
[1720336261742,1.14199925,3031.9,3031.7,2.30892]
[1720336262069,2.17,3032.1,3031.7,2.30892]
[1720336262273,1.14203066,3032.0,3031.9,4.64368]
[1720336262474,2.17,3032.1,3032.0,2.3087]
[1720336263335,2.17,3032.1,3032.0,4.6174]
[1720336264484,2.17,3032.1,3032.0,6.9523]
[1720336264635,2.17,3032.1,3032.0,7.975513]
[1720336265479,2.17,3032.1,3032.0,6.9523]
[1720336268765,2.17,3032.1,3032.0,4.6174]
[1720336268947,2.17,3032.1,3032.0,2.3087]
[1720336269158,3.31193484,3032.1,3032.0,2.3087]
[1720336269675,2.17,3032.1,3032.0,2.3087]
[1720336270035,2.17,3032.1,3032.0,5.105347]
[1720336270580,2.44,3032.5,3032.3,2.30846]
[1720336270779,1.14181115,3032.4,3032.3,2.30846]
[1720336271367,1.14181115,3032.4,3032.2,2.30849]
[1720336271549,1.14181115,3032.3,3032.2,2.30849]
[1720336271750,1.14181115,3032.3,3032.0,4.64358]
[1720336271968,1.14181115,3032.4,3032.0,4.64358]
[1720336272167,1.14181115,3032.4,3032.0,4.64355]
[1720336272344,1.14181115,3032.4,3032.1,2.30856]
[1720336273065,1.49999227,3032.4,3031.7,4.64377]
[1720336273240,3.50321115,3032.3,3031.7,4.64377]
[1720336273583,2.3614,3032.3,3031.6,7.28]
[1720336273782,1.79933491,3032.2,3031.5,4.64392]
[1720336274079,1.8372635,3032.1,3031.5,4.64392]
[1720336274239,1.14201303,3032.0,3031.5,4.64392]
[1720336275679,1.14201303,3032.0,3031.5,2.30902]
[1720336276882,0.55,3032.2,3031.6,2.30899]
[1720336277090,1.24941766,3032.1,3031.6,2.30899]
[1720336277247,1.14209995,3032.0,3031.6,2.30899]
[1720336277452,1.14209867,3031.9,3031.7,4.64192]
[1720336277748,1.14209867,3031.8,3031.7,4.64192]
[1720336278673,1.14206445,3031.8,3031.7,4.64192]
[1720336278982,1.14206445,3031.8,3031.5,6.95104]
[1720336279184,1.14206445,3031.7,3031.5,6.95104]
[1720336279349,1.14206445,3032.1,3031.6,2.30901]
[1720336279551,0.10731572,3032.0,3031.6,2.30901]
[1720336279782,1.14206445,3031.9,3031.6,2.30901]
[1720336280090,0.80811479,3032.1,3031.6,2.30901]
[1720336280284,1.24939886,3032.0,3031.6,2.30901]
[1720336280583,1.14208585,3031.9,3031.6,2.30901]
[1720336280892,1.14208585,3031.8,3031.6,2.30901]
[1720336281212,0.80811479,3032.1,3031.6,2.30901]
[1720336281415,1.24939698,3032.0,3031.6,2.30901]
[1720336281616,1.14208015,3031.9,3031.6,4.61796]
[1720336281777,1.14208015,3031.8,3031.6,4.61796]
[1720336281979,2.26973068,3032.2,3031.6,4.61796]
[1720336282178,1.24940641,3032.1,3031.6,4.61796]
[1720336282483,1.24940641,3032.0,3031.6,4.61791]
[1720336282694,1.14209051,3031.9,3031.6,2.30895]
[1720336283019,1.71973068,3032.3,3031.8,2.333]
[1720336283315,1.14195508,3032.2,3031.9,2.30871]
[1720336283520,1.14195094,3032.1,3031.9,2.30871]
[1720336283677,1.14195094,3032.1,3031.9,3.00377]
[1720336284078,1.14195094,3032.1,3031.9,5.3125]
[1720336284723,0.10732268,3032.2,3031.9,5.3125]
[1720336285018,1.14194768,3032.1,3031.9,5.3125]
[1720336285315,1.14194768,3032.0,3031.9,5.3125]
[1720336285521,1.14194768,3032.1,3031.9,5.3125]
[1720336285716,1.14194768,3032.0,3031.9,5.3125]
[1720336285906,0.10732268,3032.2,3031.9,5.3125]
[1720336285907,1.14194768,3032.1,3032.0,4.6174]
[1720336286114,0.10732268,3032.2,3032.1,2.839876]
[1720336286277,1.24921046,3032.2,3032.1,2.839876]
[1720336286482,0.10732268,3032.2,3032.1,2.839876]
[1720336286731,1.24920195,3032.2,3032.1,5.172876]
[1720336287018,0.10732268,3032.2,3032.1,5.172876]
[1720336289227,0.10732268,3032.2,3032.1,7.481506]
[1720336291935,0.10732268,3032.2,3032.1,8.451506]
[1720336294538,0.10732268,3032.2,3032.1,10.760136]
[1720336294964,1.72134927,3033.0,3032.7,2.30815]
[1720336295238,1.24906661,3032.9,3032.8,2.30809]
[1720336295442,1.1417335,3032.9,3032.8,3.27809]
[1720336295603,4.61,3033.1,3032.9,2.308]
[1720336295804,1.14164471,3033.0,3032.9,2.308]
[1720336296042,4.61,3033.1,3032.9,2.308]
[1720336299753,4.61,3033.1,3032.9,4.61597]
[1720336300071,4.61,3033.1,3032.9,2.30797]
[1720336301744,4.61,3033.1,3032.7,4.5657]
[1720336302279,4.61,3033.1,3032.7,6.87381]
[1720336302576,4.61,3033.1,3032.7,4.5657]
[1720336302760,4.61,3033.1,3032.7,6.87381]
[1720336302960,4.61,3033.1,3032.7,4.5657]
[1720336306338,4.61,3033.1,3032.8,2.30808]
[1720336310581,1.14165155,3033.0,3032.8,2.30808]
[1720336310773,4.61,3033.1,3032.7,2.2576]
[1720336310975,1.14166087,3033.0,3032.7,4.56574]
[1720336311147,4.61,3033.1,3032.7,4.56574]
[1720336311349,1.14168009,3033.0,3032.7,4.56574]
[1720336311548,5.30957,3033.1,3032.7,4.56574]
[1720336311790,1.14168481,3033.0,3032.7,4.56574]
[1720336312085,5.30957,3033.1,3032.7,4.56574]
[1720336312251,1.14167263,3033.0,3032.7,4.56574]
[1720336312450,5.30957,3033.1,3032.7,4.56574]
[1720336312663,1.14167243,3033.0,3032.6,2.30818]
[1720336312903,1.14167318,3032.9,3032.4,4.56599]
[1720336313104,0.64512424,3033.0,3032.4,4.56599]
[1720336313263,1.141737,3032.9,3032.4,4.56599]
[1720336313605,1.141737,3032.8,3032.4,4.56599]
[1720336313805,1.141737,3032.9,3032.4,4.56599]
[1720336313967,1.141737,3033.0,3032.4,4.56599]
[1720336314694,1.141737,3033.0,3032.5,2.30832]
[1720336315286,1.141737,3033.0,3032.4,4.566]
[1720336315686,1.141737,3033.0,3032.5,2.30832]
[1720336316191,1.14170258,3032.9,3032.5,2.30832]
[1720336316389,1.14170258,3032.8,3032.5,2.30832]
[1720336316590,6.91788,3033.1,3032.5,2.30832]
[1720336316830,1.14171481,3033.0,3032.5,2.30832]
[1720336317029,1.14171481,3032.9,3032.5,2.30832]
[1720336317235,1.14171481,3033.0,3032.5,2.30832]
[1720336317937,1.14171523,3032.9,3032.5,2.30832]
[1720336318226,1.14171523,3032.8,3032.4,2.2576]
[1720336318387,1.14171523,3033.0,3032.4,5.2576]
[1720336319237,1.14171523,3033.0,3032.4,7.566]
[1720336319439,1.14176336,3032.9,3032.4,7.566]
[1720336319638,1.14176336,3032.8,3032.4,7.566]
[1720336319804,1.14176336,3032.8,3032.4,8.536]
[1720336319994,1.14176336,3032.7,3032.4,8.536]
[1720336320212,1.14176336,3032.6,3032.4,8.536]
[1720336320412,6.91788,3033.1,3032.5,0.97]
[1720336320611,1.14172648,3033.0,3032.5,0.97]
[1720336320858,1.14172648,3032.9,3032.2,2.3085]
[1720336321019,2.30824,3032.7,3032.0,9.5749]
[1720336321218,2.30837,3032.5,3031.8,2.2949]
[1720336321430,1.14172648,3032.4,3031.9,0.97]
[1720336321919,1.14197175,3032.3,3031.9,0.97]
[1720336322150,1.14197175,3032.2,3031.9,0.97]
[1720336322355,1.14197175,3032.1,3031.9,3.97]
[1720336322563,1.14197175,3032.4,3031.9,3.97]
[1720336322731,1.14196372,3032.3,3031.9,3.97]
[1720336322931,1.14196372,3032.2,3031.9,3.97]
[1720336323117,2.62913337,3032.3,3031.9,3.97]
[1720336323318,1.14196372,3032.2,3031.9,0.97]
[1720336324326,1.14196372,3032.3,3031.9,0.97]
[1720336324542,1.14196372,3032.2,3031.9,0.97]
[1720336324742,1.14196372,3032.3,3031.9,0.97]
[1720336324943,1.14198466,3032.2,3031.9,0.97]
[1720336325161,1.14198466,3032.1,3031.9,3.97]
[1720336325347,2.3084,3032.4,3031.9,3.97]
[1720336325547,1.14200374,3032.3,3031.9,3.97]
[1720336325855,1.14200374,3032.2,3031.9,3.97]
[1720336326051,2.3084,3032.4,3031.9,3.97]
[1720336326052,1.14200374,3032.3,3031.9,3.97]
[1720336326262,2.17841695,3032.6,3031.9,3.97]
[1720336326263,1.14200374,3032.2,3032.1,0.97]
[1720336326630,1.1419828,3032.2,3032.1,0.97]
[1720336327030,1.1419828,3032.2,3031.9,6.2649]
[1720336327377,2.30833,3032.5,3031.9,6.2649]
[1720336327562,1.14200037,3032.4,3031.9,6.2649]
[1720336327723,1.14200037,3032.3,3031.9,6.2649]
[1720336327922,1.14200037,3032.2,3031.9,6.2649]
[1720336328132,2.30833,3032.5,3031.9,6.2649]
[1720336328359,1.14198122,3032.4,3031.9,6.2649]
[1720336328559,1.14198122,3032.3,3031.9,0.97]
[1720336328766,2.30859,3032.2,3031.5,2.2949]
[1720336329055,1.14198122,3032.1,3031.6,0.97]
[1720336329225,3.45062122,3032.1,3031.5,2.2949]
[1720336329421,1.14198122,3032.0,3031.6,0.97]
[1720336331439,2.30864,3032.1,3031.6,0.97]
[1720336331686,1.14211304,3032.0,3031.6,0.97]
[1720336331979,2.30864,3032.1,3031.6,0.97]
[1720336332142,1.14211269,3032.0,3031.6,0.97]
[1720336332340,1.14211269,3032.0,3031.2,4.60418]
[1720336332341,3.45095174,3031.9,3031.2,4.60418]
[1720336332540,1.14211174,3031.8,3031.4,0.97]
[1720336332775,2.85884,3031.9,3031.4,0.97]
[1720336332980,0.55,3031.9,3031.4,0.97]
[1720336333140,0.55,3032.0,3031.4,0.97]
[1720336333951,2.85871,3032.0,3031.4,0.97]
[1720336334374,3.45093826,3031.9,3031.3,5.30922]
[1720336334579,2.30879,3031.9,3031.5,0.97]
[1720336336571,2.85873,3032.0,3031.5,0.97]
[1720336337278,2.30878,3031.9,3031.4,0.97]
[1720336337487,2.85886,3031.8,3031.2,2.2949]
[1720336337672,5.483838,3031.8,3031.2,2.2949]
[1720336337884,5.483838,3031.8,3031.2,5.2949]
[1720336338178,1.14223946,3031.7,3031.2,5.2949]
[1720336338373,5.483838,3031.8,3031.2,5.2949]
[1720336338573,1.14224506,3031.7,3031.2,5.2949]
[1720336338790,5.483838,3031.8,3031.2,5.2949]
[1720336339098,1.14224081,3031.7,3031.2,5.2949]
[1720336339299,5.483838,3031.8,3031.2,5.2949]
[1720336339796,1.92150967,3031.7,3031.2,5.2949]
[1720336340004,0.7792618,3031.7,3031.2,5.2949]
[1720336340501,3.0882018,3031.7,3031.2,3.0]
[1720336340886,3.45131272,3031.6,3031.0,2.3869]
[1720336341087,2.30903,3031.6,3031.0,3.3569]
[1720336341301,2.30903,3031.6,3031.0,5.66635]
[1720336342109,2.30903,3031.6,3031.0,4.69635]
[1720336342408,2.30903,3031.6,3031.0,5.66635]
[1720336342563,2.30903,3031.6,3031.0,3.3569]
[1720336342763,2.30903,3031.6,3031.0,5.66636]
[1720336344305,3.13766318,3031.6,3031.0,2.3869]
[1720336344517,3.13766318,3031.6,3030.9,0.1129741]
[1720336344807,3.13766318,3031.6,3030.9,3.3924941]
[1720336344808,1.14231912,3031.5,3030.9,3.3924941]
[1720336345171,3.13766318,3031.6,3030.9,3.3924941]
[1720336345505,1.14232329,3031.5,3030.9,3.3924941]
[1720336345803,3.13766318,3031.6,3030.9,3.3924941]
[1720336345998,1.14232306,3031.5,3030.9,3.3924941]
[1720336346210,2.30908,3031.5,3030.9,3.3924941]
[1720336347497,1.14232682,3031.4,3030.9,3.3924941]
[1720336347701,2.30908,3031.5,3030.9,3.3924941]
[1720336348110,2.3391,3031.4,3030.9,0.1129741]
[1720336348297,5.16288532,3031.5,3030.9,0.1129741]
[1720336348496,4.00151555,3031.4,3030.9,0.1129741]
[1720336348708,2.85917,3031.4,3030.9,0.1129741]
[1720336348929,1.14235288,3031.3,3030.9,0.1129741]
[1720336349117,2.85917,3031.4,3030.9,0.1129741]
[1720336349277,1.142357,3031.3,3030.9,0.1129741]
[1720336349482,0.55,3031.4,3031.1,2.3869]
[1720336349697,1.14232799,3031.3,3031.1,2.3869]
[1720336349900,0.55,3031.4,3031.1,2.3869]
[1720336351001,2.30895,3031.7,3031.1,2.3869]
[1720336351211,0.55,3031.6,3031.1,2.3869]
[1720336351369,1.69226034,3031.6,3031.1,2.3869]
[1720336351701,1.14226034,3031.5,3031.1,2.3869]
[1720336353494,1.14226034,3031.5,3031.1,4.69628]
[1720336354609,1.1422681,3031.4,3031.1,4.69628]
[1720336354817,2.44,3031.9,3031.2,3.27926]
[1720336355115,1.69220614,3031.8,3031.3,2.4589]
[1720336355415,1.14220614,3031.7,3031.3,2.4589]
[1720336356273,1.14220884,3031.6,3031.3,4.76813]
[1720336356488,1.14220884,3031.5,3031.3,4.76813]
[1720336356692,0.55,3031.8,3031.3,2.4589]
[1720336356892,1.1421931,3031.7,3031.3,2.4589]
[1720336357117,1.1421931,3031.6,3031.3,2.4589]
[1720336357324,1.1421931,3031.5,3031.3,2.4589]
[1720336357531,1.1421931,3031.7,3031.3,4.76812]
[1720336357824,1.14220276,3031.6,3031.3,4.76812]
[1720336358027,1.14220276,3031.5,3031.3,4.76812]
[1720336358394,1.14220884,3031.4,3031.3,4.76812]
[1720336358724,0.55,3031.8,3031.3,4.76812]
[1720336358928,1.14221779,3031.4,3031.3,4.76812]
[1720336359148,1.14221779,3031.4,3030.9,0.1129741]
[1720336359433,1.14221779,3031.3,3030.9,2.4225041]
[1720336359614,1.37311979,3031.5,3030.9,2.4225041]
[1720336359927,1.14221779,3031.4,3030.9,2.4225041]
[1720336361140,0.230902,3031.5,3030.9,2.4225041]
[1720336361445,1.14234566,3031.4,3030.9,2.4225041]
[1720336361740,1.14234566,3031.3,3030.9,2.4225041]
[1720336361938,1.14234566,3031.2,3030.9,2.4225041]
[1720336362139,1.14234566,3031.1,3030.9,2.4225041]
[1720336362327,1.14234566,3031.4,3030.9,2.4225041]
[1720336363298,1.14234566,3031.4,3030.9,0.1129741]
[1720336363529,1.51057943,3031.4,3030.9,0.1129741]
[1720336363733,1.14234566,3031.3,3030.9,0.1129741]
[1720336364444,5.08680377,3031.4,3030.9,0.1129741]
[1720336364742,1.69246094,3031.3,3030.9,0.1129741]
[1720336364943,0.55,3031.3,3030.9,0.1129741]
[1720336365237,1.14246358,3031.2,3030.9,0.1129741]
[1720336365400,1.53960272,3031.3,3030.9,0.1129741]
[1720336365401,1.14246358,3031.1,3030.9,0.1129741]
[1720336365601,1.14246358,3031.2,3030.9,0.1129741]
[1720336366198,1.14245613,3031.1,3030.9,0.1129741]
[1720336366536,1.14245613,3031.0,3030.9,0.1129741]
[1720336367617,3.84884272,3031.3,3030.9,0.1129741]
[1720336367805,1.73610352,3031.2,3030.9,0.1129741]
[1720336368011,1.14247034,3031.1,3030.9,0.1129741]
[1720336368341,1.14247034,3031.0,3030.9,0.1129741]
[1720336368530,1.14247034,3031.1,3030.9,0.1129741]
[1720336371011,1.14247543,3031.0,3030.9,0.1129741]
[1720336372047,4.17554629,3031.0,3030.9,0.1129741]
[1720336373648,6.58494629,3031.0,3030.9,0.1129741]
[1720336373816,4.17554629,3031.0,3030.9,0.1129741]
[1720336374348,4.17560212,3031.0,3030.9,0.1129741]
[1720336374707,3.03307086,3031.0,3030.9,0.1129741]
[1720336374946,4.17561675,3031.0,3030.9,0.1129741]
[1720336375369,6.48507675,3031.0,3030.9,0.1129741]
[1720336375944,6.48509368,3031.0,3030.9,0.1129741]
[1720336377643,6.48509245,3031.0,3030.9,0.1129741]
[1720336379173,1.14256159,3031.0,3030.9,0.1129741]
[1720336380667,0.55,3031.0,3030.9,0.1129741]
[1720336380874,1.69253699,3031.0,3030.9,0.1129741]
[1720336382180,1.47363743,3031.0,3030.9,0.1129741]
[1720336382341,1.14253699,3031.0,3030.9,0.1129741]
[1720336383379,2.17,3031.1,3030.9,0.1129741]
[1720336383884,1.14247303,3031.0,3030.9,0.1129741]
[1720336385061,1.14247904,3031.0,3030.9,0.1129741]
[1720336386166,1.87671233,3031.0,3030.9,0.1129741]
[1720336386551,1.87675755,3031.0,3030.9,0.1129741]
[1720336388368,4.18621755,3031.0,3030.9,0.1129741]
[1720336388574,8.76626116,3031.0,3030.9,0.1129741]
[1720336388773,7.04567755,3031.0,3030.9,0.1129741]
[1720336389722,5.90315329,3031.0,3030.9,0.1129741]
[1720336390011,7.04579748,3031.0,3030.9,0.1129741]
[1720336390576,10.53192113,3031.0,3030.9,0.1129741]
[1720336390781,12.84138113,3031.0,3030.9,0.1129741]
[1720336391094,15.84138113,3031.0,3030.9,0.1129741]
[1720336391293,16.81138113,3031.0,3030.9,0.1129741]
[1720336392413,24.09884113,3031.0,3030.9,0.1129741]
[1720336392912,21.88317329,3031.0,3030.9,0.1129741]
[1720336393080,24.09898609,3031.0,3030.9,0.1129741]
[1720336393283,21.88317329,3031.0,3030.9,0.1129741]
[1720336393480,23.12896869,3031.0,3030.9,0.1129741]
[1720336393926,24.09896869,3031.0,3030.9,0.1129741]
[1720336394527,22.95606808,3031.0,3030.9,0.1129741]
[1720336394825,24.44274524,3031.0,3030.9,0.1129741]
[1720336396121,23.29981926,3031.0,3030.9,0.1129741]
[1720336396319,24.44273221,3031.0,3030.9,0.1129741]
[1720336396621,26.84525581,3031.0,3030.9,0.1129741]
[1720336397443,26.84525581,3031.0,3029.1,3.28088]
[1720336397444,2.31024,3030.0,3029.3,2.3823]
[1720336397732,1.69293933,3029.9,3029.3,2.3823]
[1720336397926,1.14293933,3029.8,3029.3,2.3823]
[1720336398720,2.86031,3029.9,3029.3,2.3823]
[1720336398918,0.5,3029.9,3029.4,2.3823]
[1720336399229,10.49022,3030.1,3029.4,2.3823]
[1720336399433,3.45316524,3030.0,3029.4,2.3823]
[1720336399748,2.31025,3030.0,3029.4,2.3823]
[1720336400736,3.28051,3029.7,3028.9,4.69329]
[1720336400921,1.14311163,3029.6,3029.0,4.69328]
[1720336401119,0.55,3029.6,3029.0,4.69328]
[1720336401662,2.31035,3029.9,3029.2,2.3823]
[1720336401804,1.6930239,3029.8,3029.4,2.3823]
[1720336402005,2.31023,3030.0,3029.4,2.3823]
[1720336402227,1.69297705,3029.9,3029.4,2.3823]
[1720336402445,0.55,3029.9,3029.4,2.3823]
[1720336402623,0.55,3029.9,3029.2,2.31077]
[1720336402823,1.14297895,3029.8,3029.2,2.31077]
[1720336403034,0.97,3029.8,3029.2,2.31077]
[1720336403456,1.36682,3029.8,3029.1,2.3823]
[1720336403771,1.69304094,3029.7,3029.1,2.3823]
[1720336404057,1.14304094,3029.6,3029.1,2.3823]
[1720336404225,0.55,3029.7,3029.1,2.3823]
[1720336404421,3.45367025,3029.6,3029.1,2.3823]
[1720336404627,1.50704902,3029.6,3029.1,2.3823]
[1720336404841,2.31093,3029.1,3028.4,2.3823]
[1720336405042,2.17,3028.9,3028.4,2.3823]
[1720336405261,2.17,3028.9,3028.4,4.69374]
[1720336405458,2.17,3028.9,3028.6,2.3823]
[1720336406277,2.17,3028.9,3028.6,3.01469744]
[1720336406475,2.17,3028.9,3028.7,4.69351]
[1720336408874,2.17,3028.9,3028.7,2.3823]
[1720336410754,2.17,3028.9,3028.1,4.69397]
[1720336411083,0.97,3028.8,3028.2,2.3116]
[1720336411380,0.217,3028.8,3028.2,2.3116]
[1720336411734,0.217,3028.8,3028.3,2.31152]
[1720336411939,2.17,3028.9,3028.3,2.31152]
[1720336413064,0.97,3028.4,3027.9,0.1129741]
[1720336413377,2.17,3028.9,3027.9,0.17902233]
[1720336413591,1.14355247,3028.8,3028.3,0.97]
[1720336413744,2.9751,3028.9,3028.3,0.97]
[1720336414077,1.14351549,3028.8,3028.3,0.97]
[1720336414291,5.28618,3028.9,3028.1,1.03603927]
[1720336414990,5.28618,3028.9,3028.1,0.06603927]
[1720336415277,2.839758,3028.8,3028.1,0.06603925]
[1720336415437,2.839758,3028.8,3028.0,3.3523]
[1720336415438,2.839758,3028.8,3028.0,2.3823]
[1720336415641,2.31145,3028.4,3028.0,2.3823]
[1720336415871,2.31145,3028.4,3027.9,0.1129741]
[1720336416074,0.231145,3028.3,3027.9,0.1129741]
[1720336417188,2.3116,3028.2,3027.9,0.1129741]
[1720336417648,2.86168,3028.1,3027.9,0.1129741]
[1720336417846,2.31175,3028.0,3027.9,0.1129741]
[1720336418069,6.1435,3028.0,3027.9,0.1129741]
[1720336418273,7.11485,3028.0,3027.9,0.1129741]
[1720336418988,5.88168,3028.1,3027.9,0.1129741]
[1720336419474,1.14376711,3028.0,3027.9,0.1129741]
[1720336419775,5.88168,3028.1,3027.9,0.1129741]
[1720336419986,3.45551607,3028.0,3027.9,0.1129741]
[1720336420137,2.31175,3028.0,3027.9,0.1129741]
[1720336421062,2.86175,3028.0,3027.9,0.1129741]
[1720336422352,3.736093,3028.0,3027.9,0.1129741]
[1720336422684,6.047843,3028.0,3027.9,0.1129741]
[1720336422867,7.19162102,3028.0,3027.9,0.1129741]
[1720336423177,10.57582102,3028.0,3027.9,0.1129741]
[1720336423482,13.57582102,3028.0,3027.9,0.1129741]
[1720336423669,13.57590246,3028.0,3027.9,0.1129741]
[1720336424749,10.19170246,3028.0,3027.9,0.1129741]
[1720336424962,9.047843,3028.0,3027.9,0.1129741]
[1720336425285,10.19161426,3028.0,3027.9,0.1129741]
[1720336425443,10.19161268,3028.0,3027.9,0.1129741]
[1720336427625,6.736093,3028.0,3027.9,0.1129741]
[1720336427976,7.87985791,3028.0,3027.9,0.1129741]
[1720336428211,10.19160791,3028.0,3027.9,0.1129741]
[1720336428511,10.19162128,3028.0,3027.9,0.1129741]
[1720336428723,11.16162128,3028.0,3027.9,0.1129741]
[1720336431507,11.16171215,3028.0,3027.9,0.1129741]
[1720336431911,10.017843,3028.0,3027.9,0.1129741]
[1720336432087,11.16171352,3028.0,3027.9,0.1129741]
[1720336432411,13.57591352,3028.0,3027.9,0.1129741]
[1720336433011,10.19171352,3028.0,3027.9,0.1129741]
[1720336433211,10.19163438,3028.0,3027.9,0.1129741]
[1720336434585,9.047843,3028.0,3027.9,0.1129741]
[1720336434791,10.19169087,3028.0,3027.9,0.1129741]
[1720336437303,7.87994087,3028.0,3027.9,0.1129741]
[1720336437481,10.19169087,3028.0,3027.9,0.1129741]
[1720336437890,6.736093,3028.0,3027.9,0.1129741]
[1720336438217,5.56810016,3028.0,3027.9,0.1129741]
[1720336438424,7.87985016,3028.0,3027.9,0.1129741]
[1720336438716,5.56810016,3028.0,3027.9,0.1129741]
[1720336438912,4.69375716,3028.0,3027.9,2.5984741]
[1720336439513,7.00550716,3028.0,3027.9,2.5984741]
[1720336439717,6.45550716,3028.0,3027.9,0.1129741]
[1720336440840,5.31175,3028.0,3027.9,0.1129741]
[1720336441136,6.45547205,3028.0,3027.9,0.1129741]
[1720336441340,9.65120821,3028.0,3027.9,0.1129741]
[1720336441502,10.79494258,3028.0,3027.9,0.1129741]
[1720336442449,6.78945821,3028.0,3027.9,0.1129741]
[1720336442596,7.9332282,3028.0,3027.9,0.1129741]
[1720336442795,8.4832282,3028.0,3027.9,0.1129741]
[1720336443617,3.0,3028.0,3027.9,0.1129741]
[1720336443822,4.14369577,3028.0,3027.9,0.1129741]
[1720336444636,1.14369577,3028.0,3027.9,0.1129741]
[1720336445136,1.14369577,3028.0,3027.9,3.4432741]
[1720336446705,1.14369577,3028.0,3027.9,2.4732741]
[1720336446904,1.14358264,3028.0,3027.9,2.4732741]
[1720336449812,1.5019409,3028.0,3027.9,0.1129741]
[1720336450025,0.35835826,3028.0,3027.9,0.1129741]
[1720336450250,1.50202985,3028.0,3027.9,0.1129741]
[1720336450646,1.50205862,3028.0,3027.9,0.1129741]
[1720336451697,1.50203986,3028.0,3027.9,0.1129741]
[1720336452250,3.81378986,3028.0,3027.9,0.1129741]
[1720336452601,4.36378986,3028.0,3027.9,0.1129741]
[1720336452751,7.47102188,3028.0,3027.9,0.1129741]
[1720336453594,7.47112522,3028.0,3027.9,0.1129741]
[1720336454409,9.78287522,3028.0,3027.9,0.1129741]
[1720336455252,11.49762964,3028.0,3027.9,0.1129741]
[1720336456527,9.78287522,3028.0,3027.9,0.1129741]
[1720336456715,9.78290864,3028.0,3027.9,0.1129741]
[1720336458677,12.91621911,3028.0,3027.9,0.1129741]
[1720336458915,10.85545246,3028.0,3027.9,0.1129741]
[1720336459419,10.85545549,3028.0,3027.9,0.1129741]
[1720336459712,12.91622214,3028.0,3027.9,0.1129741]
[1720336459913,8.53185826,3028.0,3027.9,0.1129741]
[1720336460129,11.29520004,3028.0,3027.9,0.1129741]
[1720336460276,12.91779016,3028.0,3027.9,0.1129741]
[1720336460472,13.17792887,3028.0,3027.9,0.1129741]
[1720336461533,13.17787243,3028.0,3027.9,0.1129741]
[1720336463223,10.85435826,3028.0,3027.9,0.1129741]
[1720336463406,13.17789112,3028.0,3027.9,0.1129741]
[1720336465614,13.17756075,3028.0,3027.9,0.1129741]
[1720336466651,11.99819622,3028.0,3027.9,0.1129741]
[1720336466823,10.85503164,3028.0,3027.9,0.1129741]
[1720336469148,12.55994495,3028.0,3027.9,0.1129741]
[1720336469831,8.1735,3028.0,3027.9,0.1129741]